fUST/lending_fUST_20250525
["ID","MTS","AMOUNT","RATE_DAILY","PERIOD"]
[362210934,1748107099274,165.830787,0.00013699,2]
[362210938,1748107717306,-611.52,0.000165,2]
[362210939,1748107719881,-389.01657804,0.000165,2]
[362210980,1748107832093,-300.0,0.00017998,2]
[362210981,1748107832102,-300.0,0.00017998,2]
[362210982,1748107832111,-1200.0,0.00017998,2]
[362210984,1748107832120,-300.0,0.00017998,2]
[362210986,1748107832129,-500.0,0.00017999,2]
[362210988,1748107832139,-500.0,0.00017999,2]
[362210989,1748107832148,-500.0,0.00017999,2]
[362210991,1748107832157,-361.69457946,0.00017999,2]
[362210992,1748107832167,-211.46472849,0.00017999,2]
[362210993,1748107832176,-500.0,0.00017999,2]
[362210994,1748107832185,-500.0,0.00017999,2]
[362210995,1748107832194,-500.0,0.00017999,2]
[362210996,1748107832203,-500.0,0.00017999,2]
[362210997,1748107832213,-500.0,0.00017999,2]
[362210998,1748107832222,-500.0,0.00017999,2]
[362210999,1748107832231,-575.22725386,0.00017999,2]
[362211000,1748107832240,-500.0,0.00017999,2]
[362211001,1748107832249,-500.0,0.00017999,2]
[362211003,1748107832258,-11528.50321254,0.00018,2]
[362211018,1748107837938,-300.0,0.00017999,2]
[362211019,1748107837949,-2200.8274349,0.00018,2]
[362211044,1748107840187,-772.79413623,0.00018,2]
[362211045,1748107840208,-493.28256153,0.00018,2]
[362211046,1748107840223,-5142.4,0.00018,2]
[362211047,1748107840235,-10962.9227454,0.00018,2]
[362211048,1748107840247,-11089.96647087,0.00018,2]
[362211070,1748107843227,-1034.09748141,0.00018,2]
[362211101,1748107846273,-788.20026824,0.00018,2]
[362211102,1748107846575,-34503.69377507,0.00018,2]
[362211103,1748107846584,-4759.58315417,0.00018,2]
[362211113,1748108323360,167.987785,0.00013699,2]
[362211117,1748108680944,1255.42011254,0.000245,120]
[362211137,1748109032122,-300.0,0.00017999,2]
[362211139,1748109032132,-300.0,0.00017999,2]
[362211141,1748109032141,-300.0,0.00017999,2]
[362211144,1748109032150,-1200.0,0.00017999,2]
[362211147,1748109032159,-15360.22116976,0.00018,2]
[362211149,1748109032177,-1960.0,0.00018,2]
[362211396,1748109040415,-300.0,0.00017999,2]
[362211397,1748109040425,-3855.98496944,0.00018,2]
[362211399,1748109040435,-5139.77395913,0.00018,2]
[362211401,1748109040445,-563.91413932,0.00018487,2]
[362211402,1748109040455,-306.175,0.00018487,2]
[362211404,1748109040464,-24900.0,0.00018488,2]
[362211406,1748109040474,-948.65496934,0.00019,20]
[362211407,1748109040484,-160.0,0.00019111,2]
[362211409,1748109040494,-168.864376,0.00019178,2]
[362211411,1748109040504,-13557.89530192,0.00019178,2]
[362211413,1748109040513,-500.0,0.000193,2]
[362211415,1748109040523,-286.0,0.00019639,2]
[362211417,1748109040533,-420.0,0.00019639,2]
[362211419,1748109040542,-343.0,0.00019639,2]
[362211421,1748109040552,-160.0,0.00019942,2]
[362211423,1748109040561,-160.0,0.00019942,2]
[362211425,1748109040571,-422.929492,0.00019942,2]
[362211426,1748109040580,-229.12393663,0.00019942,2]
[362211427,1748109040590,-160.0,0.00019942,2]
[362211428,1748109040600,-12649.97184255,0.00019942,2]
[362211429,1748109040609,-177.77189404,0.00019973,2]
[362211430,1748109040619,-500.0,0.00019973,2]
[362211431,1748109040632,-160.5,0.00019973,2]
[362211432,1748109040644,-14057.60125195,0.00019999,3]
[362211433,1748109040654,-500.0,0.00019999,2]
[362211434,1748109040664,-500.0,0.00019999,2]
[362211435,1748109040674,-500.0,0.00019999,2]
[362211436,1748109040683,-261.49740418,0.00019999,2]
[362211437,1748109040693,-500.0,0.00019999,2]
[362211438,1748109040703,-500.0,0.00019999,2]
[362211439,1748109040712,-364.07783308,0.00019999,2]
[362211440,1748109040722,-12649.97184255,0.00019999,3]
[362211441,1748109040732,-168.53147808,0.0002,2]
[362211442,1748109040742,-1180.23272193,0.0002,2]
[362211443,1748109040752,-359.38955749,0.0002,2]
[362211444,1748109040762,-30000.0,0.0002,2]
[362211445,1748109040771,-104236.34880394,0.0002,2]
[362211446,1748109040784,-1093.24667025,0.0002,2]
[362211913,1748109046249,-1437.6744017,0.0002,2]
[362211920,1748109046306,-4361.2946857,0.0002,2]
[362217488,1748109125079,4000.0,0.00021917,30]
[362217490,1748109391960,158.28924,0.00013699,2]
[362217516,1748110232298,-879.34758048,0.00018519,2]
[362217518,1748110232419,-4.78323982,0.00018519,2]
[362217519,1748110232428,-300.0,0.0001871,2]
[362217520,1748110232437,-8764.48853553,0.00018711,2]
[362217521,1748110232449,-16135.51146447,0.00018711,2]
[362217522,1748110232458,-840.61078,0.00018807,2]
[362217523,1748110232467,-1330.87455315,0.000189,2]
[362217524,1748110232476,-168.864376,0.00019178,2]
[362217525,1748110232485,-300.0,0.00019328,2]
[362217526,1748110232494,-19461.17126133,0.00019329,2]
[362217527,1748110232504,-160.0,0.00019998,2]
[362217528,1748110232513,-500.0,0.00019999,2]
[362217529,1748110232522,-550.36472855,0.00019999,2]
[362217530,1748110232531,-289.29799454,0.00019999,2]
[362217531,1748110232541,-500.0,0.00019999,2]
[362217532,1748110232550,-500.0,0.00019999,2]
[362217533,1748110232559,-500.0,0.00019999,2]
[362217534,1748110232568,-500.0,0.00019999,2]
[362217535,1748110232578,-500.0,0.00019999,2]
[362217536,1748110232591,-500.0,0.00019999,2]
[362217537,1748110232602,-392.48000016,0.00019999,2]
[362217538,1748110232614,-500.0,0.00019999,2]
[362217539,1748110232623,-500.0,0.00019999,2]
[362217540,1748110232632,-229.12393663,0.00019999,2]
[362217541,1748110232641,-7028.80062597,0.0002,3]
[362217542,1748110232650,-5759.98408029,0.0002,2]
[362217543,1748110232659,-413767.12665659,0.0002,2]
[362217544,1748110232669,-500.0,0.0002,2]
[362217545,1748110232680,-157.89,0.0002,2]
[362217546,1748110232689,-151.0,0.0002,2]
[362217547,1748110232699,-214.53100307,0.0002001,2]
[362217548,1748110232709,-505.16711817,0.00020274,2]
[362217549,1748110232718,-420.0,0.000204,2]
[362217550,1748110232727,-267.59490202,0.00021,2]
[362217551,1748110232737,-420.0,0.00021061,2]
[362217552,1748110232746,-366.654,0.00021137,2]
[362217553,1748110232756,-158.8992567,0.00021671,2]
[362217554,1748110232766,-153.0,0.00021671,2]
[362217555,1748110232775,-153.0,0.00021671,2]
[362217556,1748110232784,-5000.0,0.00021831,2]
[362217557,1748110232793,-400.0,0.00021917,2]
[362217558,1748110232803,-570.42658396,0.00021917,2]
[362217559,1748110232812,-450.0,0.00021917,2]
[362217560,1748110232822,-450.0,0.00021917,2]
[362217561,1748110232831,-350.0,0.00021917,2]
[362217562,1748110232840,-430.0,0.00021917,2]
[362217563,1748110232849,-430.0,0.00021917,2]
[362217564,1748110232860,-400.0,0.00021917,2]
[362217565,1748110232869,-430.0,0.00021917,2]
[362217566,1748110232878,-430.0,0.00021917,2]
[362217567,1748110232887,-1000.0,0.00021917,2]
[362217568,1748110232896,-372.83752486,0.00021917,2]
[362217569,1748110232905,-239.49775045,0.00021917,2]
[362217570,1748110232915,-430.0,0.00021917,2]
[362217571,1748110232926,-430.0,0.00021917,2]
[362217572,1748110232935,-430.0,0.00021917,2]
[362217573,1748110232946,-430.0,0.00021917,2]
[362217574,1748110232955,-450.0,0.00021917,2]
[362217575,1748110232965,-430.0,0.00021917,2]
[362217576,1748110232974,-173.96409415,0.00021917,2]
[362217577,1748110232985,-430.0,0.00021917,2]
[362217578,1748110232995,-181.51,0.00021917,2]
[362217579,1748110233004,-430.0,0.00021917,2]
[362217580,1748110233132,-170.0,0.00021917,2]
[362217581,1748110233142,-430.0,0.00021917,2]
[362217582,1748110233152,-340.0,0.00021917,2]
[362217583,1748110233161,-430.0,0.00021917,2]
[362217584,1748110233170,-430.0,0.00021917,2]
[362217585,1748110233179,-430.0,0.00021917,2]
[362217586,1748110233189,-430.0,0.00021917,2]
[362217587,1748110233198,-430.0,0.00021917,2]
[362217588,1748110233207,-430.0,0.00021917,2]
[362217589,1748110233217,-430.0,0.00021917,2]
[362217590,1748110233226,-430.0,0.00021917,2]
[362217591,1748110233235,-430.0,0.00021917,2]
[362217592,1748110233246,-430.0,0.00021917,2]
[362217593,1748110233255,-200.0,0.00021917,2]
[362217594,1748110233264,-430.0,0.00021917,2]
[362217595,1748110233273,-430.0,0.00021917,2]
[362217596,1748110233282,-430.0,0.00021917,2]
[362217597,1748110233291,-430.0,0.00021917,2]
[362217598,1748110233300,-430.0,0.00021917,2]
[362217599,1748110233309,-430.0,0.00021917,2]
[362217600,1748110233319,-430.0,0.00021917,2]
[362217601,1748110233327,-430.0,0.00021917,2]
[362217602,1748110233336,-430.0,0.00021917,2]
[362217603,1748110233346,-210.54078875,0.00021917,2]
[362217604,1748110233355,-402.11302347,0.00021917,2]
[362217605,1748110233365,-450.0,0.00021917,2]
[362217606,1748110233374,-430.0,0.00021917,2]
[362217607,1748110233384,-454.86700228,0.00021917,2]
[362217608,1748110233393,-430.0,0.00021917,2]
[362217609,1748110233402,-430.0,0.00021917,2]
[362217610,1748110233411,-430.0,0.00021917,2]
[362217611,1748110233421,-430.0,0.00021917,2]
[362217612,1748110233431,-430.0,0.00021917,2]
[362217613,1748110233440,-430.0,0.00021917,2]
[362217614,1748110233449,-430.0,0.00021917,2]
[362217615,1748110233458,-430.0,0.00021917,2]
[362217616,1748110233468,-430.0,0.00021917,2]
[362217617,1748110233477,-430.0,0.00021917,2]
[362217618,1748110233487,-430.0,0.00021917,2]
[362217619,1748110233496,-430.0,0.00021917,2]
[362217620,1748110233506,-430.0,0.00021917,2]
[362217621,1748110233515,-430.0,0.00021917,2]
[362217622,1748110233524,-430.0,0.00021917,2]
[362217623,1748110233534,-430.0,0.00021917,2]
[362217624,1748110233543,-430.0,0.00021917,2]
[362217625,1748110233553,-450.0,0.00021917,2]
[362217626,1748110233562,-430.0,0.00021917,2]
[362217627,1748110233571,-404.69145368,0.00021917,2]
[362217628,1748110233583,-430.0,0.00021917,2]
[362217629,1748110233593,-430.0,0.00021917,2]
[362217630,1748110233602,-430.0,0.00021917,2]
[362217631,1748110233614,-430.0,0.00021917,2]
[362217632,1748110233624,-430.0,0.00021917,2]
[362217633,1748110233633,-450.0,0.00021917,2]
[362217634,1748110233644,-300.0,0.00021917,2]
[362217635,1748110233654,-450.0,0.00021917,2]
[362217636,1748110233665,-450.0,0.00021917,2]
[362217637,1748110233675,-430.0,0.00021917,2]
[362217638,1748110233686,-430.0,0.00021917,2]
[362217639,1748110233696,-430.0,0.00021917,2]
[362217640,1748110233706,-430.0,0.00021917,2]
[362217641,1748110233716,-450.0,0.00021917,2]
[362217642,1748110233726,-450.0,0.00021917,2]
[362217643,1748110233736,-154.7466949,0.00021917,2]
[362217644,1748110233746,-330.07592416,0.00021917,2]
[362217645,1748110233756,-369.33160456,0.00021917,2]
[362217646,1748110233765,-401.12162432,0.00021917,2]
[362217647,1748110233775,-430.0,0.00021917,2]
[362217648,1748110233785,-430.0,0.00021917,2]
[362217649,1748110233794,-506.8109206,0.00021917,2]
[362217650,1748110233804,-450.0,0.00021917,2]
[362217651,1748110233815,-430.0,0.00021917,2]
[362217652,1748110233825,-265.26388112,0.00021917,2]
[362217653,1748110233834,-430.0,0.00021917,2]
[362217654,1748110233843,-430.0,0.00021917,2]
[362217655,1748110233852,-450.0,0.00021917,2]
[362217656,1748110233863,-430.0,0.00021917,2]
[362217657,1748110233872,-450.0,0.00021917,2]
[362217658,1748110233882,-450.0,0.00021917,2]
[362217659,1748110233891,-430.0,0.00021917,2]
[362217660,1748110233900,-450.51,0.00021917,2]
[362217661,1748110233910,-450.0,0.00021917,2]
[362217662,1748110233920,-1000.0,0.00021917,2]
[362217663,1748110233931,-450.0,0.00021917,2]
[362217664,1748110233940,-450.0,0.00021917,2]
[362217665,1748110233949,-450.0,0.00021917,2]
[362217666,1748110233959,-430.0,0.00021917,2]
[362217667,1748110233968,-450.0,0.00021917,2]
[362217668,1748110233978,-430.0,0.00021917,2]
[362217669,1748110233988,-430.0,0.00021917,2]
[362217670,1748110233998,-430.0,0.00021917,2]
[362217671,1748110234007,-430.0,0.00021917,2]
[362217672,1748110234017,-450.0,0.00021917,2]
[362217673,1748110234026,-211.15073617,0.00021917,2]
[362217674,1748110234036,-430.0,0.00021917,2]
[362217675,1748110234045,-450.0,0.00021917,2]
[362217676,1748110234055,-450.0,0.00021917,2]
[362217677,1748110234065,-500.0,0.00021917,2]
[362217678,1748110234075,-430.0,0.00021917,2]
[362217679,1748110234085,-500.0,0.00021917,2]
[362217680,1748110234095,-500.0,0.00021917,2]
[362217681,1748110234105,-450.0,0.00021917,2]
[362217682,1748110234115,-500.0,0.00021917,2]
[362217683,1748110234124,-495.38,0.00021917,2]
[362217684,1748110234133,-430.0,0.00021917,2]
[362217685,1748110234142,-450.0,0.00021917,2]
[362217686,1748110234151,-450.0,0.00021917,2]
[362217687,1748110234161,-430.0,0.00021917,2]
[362217688,1748110234170,-450.0,0.00021917,2]
[362217689,1748110234179,-430.0,0.00021917,2]
[362217690,1748110234189,-450.0,0.00021917,2]
[362217691,1748110234198,-430.0,0.00021917,2]
[362217692,1748110234208,-450.0,0.00021917,2]
[362217693,1748110234217,-430.0,0.00021917,2]
[362217694,1748110234227,-430.0,0.00021917,2]
[362217695,1748110234236,-430.0,0.00021917,2]
[362217696,1748110234245,-450.0,0.00021917,2]
[362217697,1748110234255,-450.0,0.00021917,2]
[362217698,1748110234264,-450.0,0.00021917,2]
[362217699,1748110234276,-430.0,0.00021917,2]
[362217700,1748110234288,-450.0,0.00021917,2]
[362217701,1748110234301,-450.0,0.00021917,2]
[362217702,1748110234314,-430.0,0.00021917,2]
[362217703,1748110234327,-400.0,0.00021917,2]
[362217704,1748110234340,-450.0,0.00021917,2]
[362217705,1748110234351,-430.0,0.00021917,2]
[362217706,1748110234362,-168.62728775,0.00021917,2]
[362217707,1748110234376,-310.15132112,0.00021917,2]
[362217708,1748110234387,-430.0,0.00021917,2]
[362217709,1748110234400,-450.0,0.00021917,2]
[362217710,1748110234413,-430.0,0.00021917,2]
[362217711,1748110234425,-450.0,0.00021917,2]
[362217712,1748110234437,-430.0,0.00021917,2]
[362217713,1748110234449,-450.0,0.00021917,2]
[362217714,1748110234461,-450.0,0.00021917,2]
[362217715,1748110234473,-430.0,0.00021917,2]
[362217716,1748110234485,-430.0,0.00021917,2]
[362217717,1748110234498,-450.0,0.00021917,2]
[362217718,1748110234510,-430.0,0.00021917,2]
[362217719,1748110234521,-450.0,0.00021917,2]
[362217720,1748110234532,-450.0,0.00021917,2]
[362217721,1748110234544,-430.0,0.00021917,2]
[362217722,1748110234555,-430.0,0.00021917,2]
[362217723,1748110234565,-132.09339531,0.00021917,2]
[362217724,1748110234588,-114.90804602,0.00021917,2]
[362217725,1748110234601,-441.65195025,0.00021917,2]
[362217726,1748110234615,-430.0,0.00021917,2]
[362217727,1748110234626,-430.0,0.00021917,2]
[362217728,1748110234638,-450.0,0.00021917,2]
[362217729,1748110234648,-450.0,0.00021917,2]
[362217730,1748110234658,-191.67761108,0.00021917,2]
[362217733,1748110238351,-500.0,0.00019997,2]
[362217734,1748110238362,-500.0,0.00019997,2]
[362217735,1748110238373,-246.42358138,0.00019997,2]
[362217736,1748110238458,-253.57641862,0.00019997,2]
[362217737,1748110238471,-500.0,0.00019997,2]
[362217738,1748110238481,-500.0,0.00019997,2]
[362217739,1748110238491,-500.0,0.00019997,2]
[362217741,1748110238503,-409.46189824,0.00019997,2]
[362217742,1748110238513,-500.0,0.00019997,2]
[362217743,1748110238523,-500.0,0.00019997,2]
[362217744,1748110238534,-500.0,0.00019997,2]
[362217745,1748110238545,-500.0,0.00019997,2]
[362217746,1748110238556,-500.0,0.00019997,2]
[362217747,1748110238567,-500.0,0.00019997,2]
[362217748,1748110238578,-500.0,0.00019997,2]
[362217749,1748110238592,-500.0,0.00019997,2]
[362217750,1748110238603,-500.0,0.00019997,2]
[362217751,1748110238614,-500.0,0.00019997,2]
[362217752,1748110238625,-500.0,0.00019997,2]
[362217753,1748110238636,-500.0,0.00019997,2]
[362217754,1748110238646,-309.59447714,0.00019997,2]
[362217755,1748110238657,-500.0,0.00019997,2]
[362217756,1748110238668,-500.0,0.00019997,2]
[362217757,1748110238679,-500.0,0.00019997,2]
[362217758,1748110238691,-500.0,0.00019997,2]
[362217759,1748110238701,-500.0,0.00019997,2]
[362217760,1748110238712,-455.08109598,0.00019997,2]
[362217761,1748110238722,-500.0,0.00019997,2]
[362217762,1748110238733,-347.63982263,0.00019997,2]
[362217763,1748110238759,-258.32238892,0.00021917,2]
[362217764,1748110238772,-430.0,0.00021917,2]
[362217765,1748110238787,-450.0,0.00021917,2]
[362217766,1748110238799,-151.0,0.00021917,2]
[362217767,1748110238811,-430.0,0.00021917,2]
[362217768,1748110238825,-430.0,0.00021917,2]
[362217769,1748110238837,-450.0,0.00021917,2]
[362217770,1748110238850,-430.0,0.00021917,2]
[362217771,1748110238863,-450.0,0.00021917,2]
[362217772,1748110238875,-450.0,0.00021917,2]
[362217773,1748110238888,-430.0,0.00021917,2]
[362217774,1748110238900,-458.83961208,0.00021917,2]
[362217775,1748110238913,-430.0,0.00021917,2]
[362217776,1748110238925,-400.0,0.00021917,2]
[362217777,1748110238937,-430.0,0.00021917,2]
[362217778,1748110238951,-430.0,0.00021917,2]
[362217779,1748110238962,-400.0,0.00021917,2]
[362217780,1748110238974,-450.0,0.00021917,2]
[362217781,1748110238985,-430.0,0.00021917,2]
[362217782,1748110238996,-430.0,0.00021917,2]
[362217783,1748110239009,-450.0,0.00021917,2]
[362217784,1748110239020,-159.2025875,0.00021917,2]
[362217802,1748110240602,-30.7974125,0.00021917,2]
[362217804,1748110240611,-430.0,0.00021917,2]
[362217806,1748110240621,-237.08283724,0.00021917,2]
[362217808,1748110240630,-430.0,0.00021917,2]
[362217810,1748110240643,-430.0,0.00021917,2]
[362217812,1748110240652,-430.0,0.00021917,2]
[362217814,1748110240662,-528.35417367,0.00021917,2]
[362217816,1748110240671,-430.0,0.00021917,2]
[362217818,1748110240681,-430.0,0.00021917,2]
[362217821,1748110240691,-430.0,0.00021917,2]
[362217823,1748110240700,-430.0,0.00021917,2]
[362217825,1748110240709,-544.37916764,0.00021917,2]
[362217827,1748110240719,-430.0,0.00021917,2]
[362217829,1748110240728,-430.0,0.00021917,2]
[362217831,1748110240737,-400.0,0.00021917,2]
[362217833,1748110240747,-410.27104647,0.00021917,2]
[362217835,1748110240756,-455.35967499,0.00021917,2]
[362217837,1748110240765,-430.0,0.00021917,2]
[362217838,1748110240774,-450.0,0.00021917,2]
[362217839,1748110240784,-430.0,0.00021917,2]
[362217840,1748110240793,-430.0,0.00021917,2]
[362217841,1748110240802,-430.0,0.00021917,2]
[362217842,1748110240812,-430.0,0.00021917,2]
[362217843,1748110240821,-430.0,0.00021917,2]
[362217844,1748110240831,-430.0,0.00021917,2]
[362217845,1748110240840,-430.0,0.00021917,2]
[362217846,1748110240850,-468.61,0.00021917,2]
[362217847,1748110240859,-450.0,0.00021917,2]
[362217848,1748110240868,-430.0,0.00021917,2]
[362217849,1748110240878,-450.0,0.00021917,2]
[362217850,1748110240887,-450.0,0.00021917,2]
[362217851,1748110240896,-430.0,0.00021917,2]
[362217852,1748110240905,-430.0,0.00021917,2]
[362217853,1748110240914,-430.0,0.00021917,2]
[362217854,1748110240923,-430.0,0.00021917,2]
[362217855,1748110240932,-430.0,0.00021917,2]
[362217856,1748110240942,-430.0,0.00021917,2]
[362217857,1748110240952,-316.36229669,0.00021917,2]
[362217858,1748110240961,-430.0,0.00021917,2]
[362217859,1748110240970,-430.0,0.00021917,2]
[362217860,1748110240978,-430.0,0.00021917,2]
[362217861,1748110240988,-333.6854956,0.00021917,2]
[362218452,1748110246604,-1747.6102462,0.00021903,2]
[362218454,1748110246615,-118.72822571,0.00021917,2]
[362218456,1748110246624,-430.0,0.00021917,2]
[362218458,1748110246634,-430.0,0.00021917,2]
[362218460,1748110246643,-547.25,0.00021917,2]
[362218462,1748110246655,-500.0,0.00021917,2]
[362218464,1748110246664,-430.0,0.00021917,2]
[362218466,1748110246674,-430.0,0.00021917,2]
[362218468,1748110246684,-430.0,0.00021917,2]
[362218470,1748110246693,-250.0,0.00021917,2]
[362218472,1748110246703,-430.0,0.00021917,2]
[362218474,1748110246713,-430.0,0.00021917,2]
[362218476,1748110246723,-450.0,0.00021917,2]
[362218478,1748110246732,-526.57333338,0.00021917,2]
[362218480,1748110246742,-430.0,0.00021917,2]
[362218482,1748110246752,-430.0,0.00021917,2]
[362218484,1748110246761,-430.0,0.00021917,2]
[362218486,1748110246771,-430.0,0.00021917,2]
[362218488,1748110246780,-430.0,0.00021917,2]
[362218490,1748110246790,-576.35867665,0.00021917,2]
[362218492,1748110246799,-430.0,0.00021917,2]
[362218494,1748110246808,-450.0,0.00021917,2]
[362218496,1748110246820,-450.0,0.00021917,2]
[362218498,1748110246830,-272.29704008,0.00021917,2]
[362218500,1748110246839,-250.0,0.00021917,2]
[362218502,1748110246848,-450.0,0.00021917,2]
[362218504,1748110246857,-430.0,0.00021917,2]
[362218506,1748110246866,-206.42513144,0.00021917,2]
[362218508,1748110246876,-430.0,0.00021917,2]
[362218509,1748110246885,-430.0,0.00021917,2]
[362218511,1748110246895,-430.0,0.00021917,2]
[362218513,1748110246905,-501.44848117,0.00021917,2]
[362218515,1748110246914,-430.0,0.00021917,2]
[362218517,1748110246923,-390.0,0.00021917,2]
[362218519,1748110246932,-430.0,0.00021917,2]
[362218521,1748110246942,-450.0,0.00021917,2]
[362218523,1748110246951,-221.94001181,0.00021917,2]
[362219415,1748110671049,165.300481,0.00013699,2]
[362219430,1748111141940,2359.52765641,0.00024658,120]
[362219434,1748111273290,9451.95780988,0.00016,2]
[362219435,1748111321243,12011.979952,0.00015,2]
[362219436,1748111321944,208.84732736,0.00016,2]
[362219484,1748111432556,-153.52678562,0.000168,2]
[362219485,1748111432566,-3074.73496718,0.00018,2]
[362219486,1748111432576,-250.0,0.00018448,2]
[362219487,1748111432585,-165.164082,0.00018636,2]
[362219488,1748111432594,-2656.83581194,0.000189,2]
[362219489,1748111432603,-1494.0245981,0.00019212,2]
[362219490,1748111432612,-787.43104344,0.00019222,2]
[362219491,1748111432622,-232.39037637,0.00019222,2]
[362219492,1748111432632,-160.0,0.00019996,2]
[362219493,1748111432641,-300.0,0.00020019,2]
[362219494,1748111432651,-300.0,0.00020021,2]
[362219495,1748111432660,-160.0,0.00020022,2]
[362219496,1748111432670,-160.0,0.00020022,2]
[362219497,1748111432679,-160.0,0.00020022,2]
[362219498,1748111432691,-160.0,0.00020022,2]
[362219499,1748111432700,-12649.97184255,0.00020022,2]
[362219500,1748111432710,-422.929492,0.00020022,2]
[362219501,1748111432719,-212.4501065,0.00020023,2]
[362219502,1748111432729,-393.71552172,0.00020339,2]
[362219503,1748111432738,-152.0,0.00020422,2]
[362219504,1748111432748,-24900.0,0.00020465,2]
[362219505,1748111432757,-222.287773,0.00020852,2]
[362219506,1748111432768,-1200.0,0.00020968,2]
[362219507,1748111432778,-978.23172,0.00021478,2]
[362219508,1748111432787,-177.0,0.00021568,2]
[362219509,1748111432800,-153.0,0.00021671,2]
[362219510,1748111432809,-153.0,0.00021671,2]
[362219511,1748111432819,-153.0,0.00021678,2]
[362219512,1748111432829,-482.746278,0.00021729,2]
[362219513,1748111432838,-420.0,0.00021798,2]
[362219514,1748111432847,-420.0,0.000218,2]
[362219515,1748111432857,-4359.9505235,0.00021817,2]
[362219516,1748111432866,-500.0,0.00021829,2]
[362219517,1748111432876,-500.0,0.00021829,2]
[362219518,1748111432889,-500.0,0.00021829,2]
[362219519,1748111432899,-500.0,0.00021829,2]
[362219520,1748111432909,-174.43355699,0.00021829,2]
[362219521,1748111432924,-500.0,0.00021829,2]
[362219522,1748111432935,-500.0,0.00021829,2]
[362219523,1748111432944,-157.32626057,0.00021829,2]
[362219524,1748111432954,-500.0,0.00021829,2]
[362219525,1748111432963,-500.0,0.00021829,2]
[362219526,1748111432974,-629.91296374,0.00021829,2]
[362219527,1748111432987,-500.0,0.00021829,2]
[362219528,1748111432996,-500.0,0.00021829,2]
[362219529,1748111433005,-155.95923088,0.00021829,2]
[362219530,1748111433015,-5000.0,0.00021831,2]
[362219531,1748111433024,-500.0,0.0002189,2]
[362219532,1748111433034,-229.12393663,0.0002189,2]
[362219533,1748111433043,-894.64583333,0.0002189,2]
[362219534,1748111433052,-160.0,0.0002189,2]
[362219535,1748111433064,-160.0,0.00021892,2]
[362219536,1748111433074,-160.0,0.00021892,2]
[362219537,1748111433084,-155.0,0.00021916,2]
[362219538,1748111433094,-160.0,0.00021916,2]
[362219539,1748111433104,-500.0,0.00021916,2]
[362219540,1748111433114,-500.0,0.00021916,2]
[362219541,1748111433124,-500.0,0.00021916,2]
[362219542,1748111433133,-500.0,0.00021916,2]
[362219543,1748111433143,-500.0,0.00021916,2]
[362219544,1748111433152,-438.06537528,0.00021916,2]
[362219545,1748111433162,-500.0,0.00021916,2]
[362219546,1748111433172,-500.0,0.00021916,2]
[362219547,1748111433192,-500.0,0.00021916,2]
[362219548,1748111433203,-500.0,0.00021916,2]
[362219549,1748111433213,-500.0,0.00021916,2]
[362219550,1748111433223,-500.0,0.00021916,2]
[362219551,1748111433234,-500.0,0.00021916,2]